Workbook

Sheet Portada
E2: Libro de Remuneraciones
D4: Nombre / Razón Social | E4: NUBOX
D5: RUT | E5: 11.111.111-1
D6: Representante Legal | E6: Dayana Huala
D7: C.I. Representante Legal | E7: 1.111.111-1
B8: Antes de comenzar revisa aquí un vídeo con una breve explicación | D8: Dirección | E8: Las Condes
D9: Teléfono | E9: 2-222-222-222
D10: Mes | E10: Marzo
D11: Año Comercial | E11: 2023

Sheet Centralización (hidden)
G2: CENTRALIZACIÓN DE SUELDOS
D3: Nombre / Razón Social | G3: =+Portada!E4 -> NUBOX
D4: RUT | G4: =+Portada!E5 -> 11.111.111-1
D5: Representante Legal | G5: =+Portada!E6 -> Dayana Huala
D6: C.I. Representante Legal | G6: =+Portada!E7 -> 1.111.111-1
D7: Dirección | G7: =+Portada!E8 -> Las Condes
D8: Teléfono | G8: =+Portada!E9 -> 2-222-222-222
D9: Mes | G9: =+Portada!E10 -> Marzo
D10: Año Comercial | G10: =+Portada!E11 -> 2023
C13: N° de Cuenta | D13: Nombre de Cuenta | F13: Debe | G13: Haber
C14: 3103001 | D14: Remuneraciones | F14: =+'Libro de Remuneraciones'!S19 -> 100000
C15: 3103016 | D15: Movilización | F15: =+'Libro de Remuneraciones'!T19 -> 0
C16: 3103015 | D16: Colación | F16: =+'Libro de Remuneraciones'!U19 -> 0
C17: 3103018 | D17: Desgaste de Herramientas | F17: =+'Libro de Remuneraciones'!V19 -> 0
C18: 3103019 | D18: Pérdida de Caja | F18: =+'Libro de Remuneraciones'!W19 -> 0
C19: 3103020 | D19: Asignación Familiar | F19: =+'Libro de Remuneraciones'!X19 -> 0
C20: 3103007 | D20: Aporte Patronal | F20: =+'Libro de Remuneraciones'!AL19 -> 2400
C21: 3103018 | D21: Acc. Trabajo | F21: =+'Libro de Remuneraciones'!AM19 -> 950
C22: 2106999 | E22: Impuestos x Pagar | G22: =+'Libro de Remuneraciones'!AJ19 -> 25000
C23: 2108003 | E23: Aporte Patronal X Pagar | G23: =+'Libro de Remuneraciones'!AL19 -> 2400
C24: 2107003 | E24: Acc. Trabajo X pagar | G24: =+'Libro de Remuneraciones'!AM19 -> 950
C25: 2107000 | E25: Anticipo de Suelo | G25: =+'Libro de Remuneraciones'!AH19 -> 0
C26: 2107001 | E26: AFP X Pagar | G26: =+'Libro de Remuneraciones'!Z19 -> 10562
C27: 2107002 | E27: Salud X Pagar | G27: =+'Libro de Remuneraciones'!AA19 -> 7000
C28: 2108001 | E28: Seguro de Cesantía X Pagar | G28: =+'Libro de Remuneraciones'!AB19 -> 600
C29: 2106001 | E29: Sueldos X Pagar | G29: =+'Libro de Remuneraciones'!AK19 -> 56838
F30: =+F14+F15+F16+F17+F18+F19+F20+F21 -> 103350 | G30: =+G22+G25+G26+G27+G23+G28+G24+G29 -> 103350

Sheet Lista de Trabajadores (hidden)
F2: LISTA DE TRABAJADORES / LIQUIDACIONES DE SUELDOS
D3: Nombre / Razón Social | F3: =+Portada!E4 -> NUBOX
D4: RUT | F4: =+Portada!E5 -> 11.111.111-1
D5: Representante Legal | F5: =+Portada!E6 -> Dayana Huala
D6: C.I. Representante Legal | F6: =+Portada!E7 -> 1.111.111-1
D7: Dirección | F7: =+Portada!E8 -> Las Condes
D8: Teléfono | F8: =+Portada!E9 -> 2-222-222-222
D9: Mes | F9: =+Portada!E10 -> Marzo
D10: Año Comercial | F10: =+Portada!E11 -> 2023
C12: RESUMEN | G12: =COUNT(C13:C18) -> 0 | H12: =SUM(H13:H18) -> 0 | I12: =SUM(I13:I17) -> 14526 | J12: =SUM(J13:J17) -> 40474 | K12: Revisar Documentos
C13: N° Interno | D13: Nombre | E13: R.U.T | F13: Fecha Inicio Contrato | G13: Cargo | H13: Sueldo Base | I13: Descuentos Previsionales | J13: Líquido a Pagar | K13: Liquidación de Sueldo
I14: =+'Liquidación 1'!L27 -> 3618 | J14: =+'Liquidación 1'!K51 -> -8618
I15: =+'Liquidación 2'!L27 -> 3636 | J15: =+'Liquidación 2'!K51 -> 16364
I16: =+'Liquidación 3'!L27 -> 3636 | J16: =+'Liquidación 3'!K51 -> 16364
I17: =+'Liquidación 4'!L27 -> 3636 | J17: =+'Liquidación 4'!K51 -> 16364
I18: =+'Liquidación 5'!L27 -> 3636 | J18: =+'Liquidación 5'!K51 -> 16364

Sheet Libro de Remuneraciones (hidden)
F2: LIBRO DE REMUNERACIONES
D3: Nombre / Razón Social | F3: =+'Lista de Trabajadores'!F3 -> NUBOX
D4: RUT | F4: =+'Lista de Trabajadores'!F4 -> 11.111.111-1
D5: Representante Legal | F5: =+'Lista de Trabajadores'!F5 -> Dayana Huala
D6: C.I. Representante Legal | F6: =+'Lista de Trabajadores'!F6 -> 1.111.111-1
D7: Contador | F7: =+'Lista de Trabajadores'!F7 -> Las Condes
D8: C.I. Contador | F8: =+'Lista de Trabajadores'!F8 -> 2-222-222-222
D9: Mes | F9: =+'Lista de Trabajadores'!F9 -> Marzo
D10: Año Comercial | F10: =+'Lista de Trabajadores'!F10 -> 2023
AM12: Modificar valor según corresponda
C13: N° | D13: Nombre | E13: R.U.T | F13: Fecha de Ingreso | G13: Cargo | H13: Tipo de Contrato | I13: Sistema de Salud | J13: Nombre AFP | K13: Días Trabajados | L13: Sueldo Base | M13: Gratificación Legal | N13: Horas Extras | O13: Horas Sábado | P13: Horas Feriados | Q13: Horas Menos | R13: Bonos Imponibles (Producción) | S13: Total Imponible | T13: Bono Movilización | U13: Bono Colación | V13: Bono Desgaste de Herramientas | W13: Bono Pérdida de Caja | X13: Asignación Familiar | Y13: Total Haber | Z13: AFP | AA13: Salud | AB13: Seguro de Cesantía | AC13: Préstamos Cuota | AD13: Descuento de Terceros | AE13: Otros Descuentos | AF13: Total Descuentos | AG13: Alcance Líquido | AH13: Anticipo de Sueldos | AI13: Base Imponible Tributable | AJ13: Impuesto Único | AK13: Sueldo Líquido | AL13: 2,4% Aporte Empleador Seguro de cesantía | AM13: 0,95 % ACC.
C14: =+'Liquidación 1'!$J$9 -> 0 | D14: =+'Liquidación 1'!$J$10 -> 0 | E14: =+'Liquidación 1'!$J$11 -> 0 | F14: =+'Liquidación 1'!$J$13 -> 00:00:00 | G14: =+'Liquidación 1'!$J$12 -> 0 | H14: =+'Liquidación 1'!$J$14 -> Indefinido | I14: =+'Liquidación 1'!$I$25 -> Fonasa | J14: =+'Liquidación 1'!$J$23 -> Uno | K14: =+'Liquidación 1'!$E$17 -> 31 | L14: =+'Liquidación 1'!$G$23 -> 0 | M14: =+'Liquidación 1'!$G$24 -> 0 | N14: =+'Liquidación 1'!$E$51 -> 5000 | O14: =+'Liquidación 1'!$E$52 -> 10000 | P14: =+'Liquidación 1'!$E$53 -> 10000 | Q14: =+'Liquidación 1'!$E$54 -> -5000 | R14: =+'Liquidación 1'!$G$25 -> 0 | S14: =+'Liquidación 1'!$G$27 -> 20000 | T14: =+'Liquidación 1'!$G$31 -> 0 | U14: =+'Liquidación 1'!$G$32 -> 0 | V14: =+'Liquidación 1'!$G$33 -> 0 | W14: =+'Liquidación 1'!$G$34 -> 0 | X14: =+'Liquidación 1'!$G$30 -> 0 | Y14: =+'Liquidación 1'!$G$36 -> 20000 | Z14: =+'Liquidación 1'!$L$23 -> 2098 | AA14: =+'Liquidación 1'!$L$25 -> 1400 | AB14: =+'Liquidación 1'!$L$24 -> 120 | AC14: =+'Liquidación 1'!$L$30 -> 0 | AD14: =+'Liquidación 1'!$L$31 -> 0 | AE14: =+'Liquidación 1'!$L$32 -> 0 | AF14: =+'Liquidación 1'!$L$36 -> 3618 | AG14: =+'Liquidación 1'!$G$36-'Liquidación 1'!$L$36 -> 16382 | AH14: =+'Liquidación 1'!$K$50 -> 0 | AI14: =+'Liquidación 1'!$G$44 -> 16382 | AJ14: =+'Liquidación 1'!$G$45 -> 25000 | AK14: =+'Liquidación 1'!$K$49 -> -8618 | AL14: =+S14*2.4% -> 480 | AM14: =+S14*0.95% -> 190
C15: =+'Liquidación 2'!$J$9 -> 0 | D15: =+'Liquidación 2'!$J$10 -> 0 | E15: =+'Liquidación 2'!$J$11 -> 0 | F15: =+'Liquidación 2'!$J$13 -> 00:00:00 | G15: =+'Liquidación 2'!$J$12 -> 0 | H15: =+'Liquidación 2'!$J$14 -> Indefinido | I15: =+'Liquidación 2'!$I$25 -> Fonasa | J15: =+'Liquidación 2'!$J$23 -> Modelo | K15: =+'Liquidación 2'!$E$17 -> 31 | L15: =+'Liquidación 2'!$G$23 -> 0 | M15: =+'Liquidación 2'!$G$24 -> 0 | N15: =+'Liquidación 2'!$E$51 -> 5000 | O15: =+'Liquidación 2'!$E$52 -> 10000 | P15: =+'Liquidación 2'!$E$53 -> 10000 | Q15: =+'Liquidación 2'!$E$54 -> -5000 | R15: =+'Liquidación 2'!$G$25 -> 0 | S15: =+'Liquidación 2'!$G$27 -> 20000 | T15: =+'Liquidación 2'!$G$31 -> 0 | U15: =+'Liquidación 2'!$G$32 -> 0 | V15: =+'Liquidación 2'!$G$33 -> 0 | W15: =+'Liquidación 2'!$G$34 -> 0 | X15: =+'Liquidación 2'!$G$30 -> 0 | Y15: =+'Liquidación 2'!$G$36 -> 20000 | Z15: =+'Liquidación 2'!$L$23 -> 2116 | AA15: =+'Liquidación 2'!$L$25 -> 1400 | AB15: =+'Liquidación 2'!$L$24 -> 120 | AC15: =+'Liquidación 2'!$L$30 -> 0 | AD15: =+'Liquidación 2'!$L$31 -> 0 | AE15: =+'Liquidación 2'!$L$32 -> 0 | AF15: =+'Liquidación 2'!$L$36 -> 3636 | AG15: =+'Liquidación 2'!$G$36-'Liquidación 2'!$L$36 -> 16364 | AH15: =+'Liquidación 2'!$K$50 -> 0 | AI15: =+'Liquidación 2'!$G$44 -> 16364 | AJ15: =+'Liquidación 2'!$G$45 -> 0 | AK15: =+'Liquidación 2'!$K$49 -> 16364 | AL15: =+S15*2.4% -> 480 | AM15: =+S15*0.95% -> 190
C16: =+'Liquidación 3'!$J$9 -> 0 | D16: =+'Liquidación 3'!$J$10 -> 0 | E16: =+'Liquidación 3'!$J$11 -> 0 | F16: =+'Liquidación 3'!$J$13 -> 00:00:00 | G16: =+'Liquidación 3'!$J$12 -> 0 | H16: =+'Liquidación 3'!$J$14 -> Indefinido | I16: =+'Liquidación 3'!$I$25 -> Fonasa | J16: =+'Liquidación 3'!$J$23 -> Modelo | K16: =+'Liquidación 3'!$E$17 -> 31 | L16: =+'Liquidación 3'!$G$23 -> 0 | M16: =+'Liquidación 3'!$G$24 -> 0 | N16: =+'Liquidación 3'!$E$51 -> 5000 | O16: =+'Liquidación 3'!$E$52 -> 10000 | P16: =+'Liquidación 3'!$E$53 -> 10000 | Q16: =+'Liquidación 3'!$E$54 -> -5000 | R16: =+'Liquidación 3'!$G$25 -> 0 | S16: =+'Liquidación 3'!$G$27 -> 20000 | T16: =+'Liquidación 3'!$G$31 -> 0 | U16: =+'Liquidación 3'!$G$32 -> 0 | V16: =+'Liquidación 3'!$G$33 -> 0 | W16: =+'Liquidación 3'!$G$34 -> 0 | X16: =+'Liquidación 3'!$G$30 -> 0 | Y16: =+'Liquidación 3'!$G$36 -> 20000 | Z16: =+'Liquidación 3'!$L$23 -> 2116 | AA16: =+'Liquidación 3'!$L$25 -> 1400 | AB16: =+'Liquidación 3'!$L$24 -> 120 | AC16: =+'Liquidación 3'!$L$30 -> 0 | AD16: =+'Liquidación 3'!$L$31 -> 0 | AE16: =+'Liquidación 3'!$L$32 -> 0 | AF16: =+'Liquidación 3'!$L$36 -> 3636 | AG16: =+'Liquidación 3'!$G$36-'Liquidación 3'!$L$36 -> 16364 | AH16: =+'Liquidación 3'!$K$50 -> 0 | AI16: =+'Liquidación 3'!$G$44 -> 16364 | AJ16: =+'Liquidación 3'!$G$45 -> 0 | AK16: =+'Liquidación 3'!$K$49 -> 16364 | AL16: =+S16*2.4% -> 480 | AM16: 190
C17: =+'Liquidación 4'!$J$9 -> 0 | D17: =+'Liquidación 4'!$J$10 -> 0 | E17: =+'Liquidación 4'!$J$11 -> 0 | F17: =+'Liquidación 4'!$J$13 -> 00:00:00 | G17: =+'Liquidación 4'!$J$12 -> 0 | H17: =+'Liquidación 4'!$J$14 -> Indefinido | I17: =+'Liquidación 4'!$I$25 -> Fonasa | J17: =+'Liquidación 4'!$J$23 -> Modelo | K17: =+'Liquidación 4'!$E$17 -> 31 | L17: =+'Liquidación 4'!$G$23 -> 0 | M17: =+'Liquidación 4'!$G$24 -> 0 | N17: =+'Liquidación 4'!$E$51 -> 5000 | O17: =+'Liquidación 4'!$E$52 -> 10000 | P17: =+'Liquidación 4'!$E$53 -> 10000 | Q17: =+'Liquidación 4'!$E$54 -> -5000 | R17: =+'Liquidación 4'!$G$25 -> 0 | S17: =+'Liquidación 4'!$G$27 -> 20000 | T17: =+'Liquidación 4'!$G$31 -> 0 | U17: =+'Liquidación 4'!$G$32 -> 0 | V17: =+'Liquidación 4'!$G$33 -> 0 | W17: =+'Liquidación 4'!$G$34 -> 0 | X17: =+'Liquidación 4'!$G$30 -> 0 | Y17: =+'Liquidación 4'!$G$36 -> 20000 | Z17: =+'Liquidación 4'!$L$23 -> 2116 | AA17: =+'Liquidación 4'!$L$25 -> 1400 | AB17: =+'Liquidación 4'!$L$24 -> 120 | AC17: =+'Liquidación 4'!$L$30 -> 0 | AD17: =+'Liquidación 4'!$L$31 -> 0 | AE17: =+'Liquidación 4'!$L$32 -> 0 | AF17: =+'Liquidación 4'!$L$36 -> 3636 | AG17: =+'Liquidación 4'!$G$36-'Liquidación 4'!$L$36 -> 16364 | AH17: =+'Liquidación 4'!$K$50 -> 0 | AI17: =+'Liquidación 4'!$G$44 -> 16364 | AJ17: =+'Liquidación 4'!$G$45 -> 0 | AK17: =+'Liquidación 4'!$K$49 -> 16364 | AL17: =+S17*2.4% -> 480 | AM17: 190
C18: =+'Liquidación 5'!$J$9 -> 0 | D18: =+'Liquidación 5'!$J$10 -> 0 | E18: =+'Liquidación 5'!$J$11 -> 0 | F18: =+'Liquidación 5'!$J$13 -> 00:00:00 | G18: =+'Liquidación 5'!$J$12 -> 0 | H18: =+'Liquidación 5'!$J$14 -> Indefinido | I18: =+'Liquidación 5'!$I$25 -> Fonasa | J18: =+'Liquidación 5'!$J$23 -> Modelo | K18: =+'Liquidación 5'!$E$17 -> 31 | L18: =+'Liquidación 5'!$G$23 -> 0 | M18: =+'Liquidación 5'!$G$24 -> 0 | N18: =+'Liquidación 5'!$E$51 -> 5000 | O18: =+'Liquidación 5'!$E$52 -> 10000 | P18: =+'Liquidación 5'!$E$53 -> 10000 | Q18: =+'Liquidación 5'!$E$54 -> -5000 | R18: =+'Liquidación 5'!$G$25 -> 0 | S18: =+'Liquidación 5'!$G$27 -> 20000 | T18: =+'Liquidación 5'!$G$31 -> 0 | U18: =+'Liquidación 5'!$G$32 -> 0 | V18: =+'Liquidación 5'!$G$33 -> 0 | W18: =+'Liquidación 5'!$G$34 -> 0 | X18: =+'Liquidación 5'!$G$30 -> 0 | Y18: =+'Liquidación 5'!$G$36 -> 20000 | Z18: =+'Liquidación 5'!$L$23 -> 2116 | AA18: =+'Liquidación 5'!$L$25 -> 1400 | AB18: =+'Liquidación 5'!$L$24 -> 120 | AC18: =+'Liquidación 5'!$L$30 -> 0 | AD18: =+'Liquidación 5'!$L$31 -> 0 | AE18: =+'Liquidación 5'!$L$32 -> 0 | AF18: =+'Liquidación 5'!$L$36 -> 3636 | AG18: =+'Liquidación 5'!$G$36-'Liquidación 5'!$L$36 -> 16364 | AH18: =+'Liquidación 5'!$K$50 -> 0 | AI18: =+'Liquidación 5'!$G$44 -> 16364 | AJ18: =+'Liquidación 5'!$G$45 -> 0 | AK18: =+'Liquidación 5'!$K$49 -> 16364 | AL18: =+S18*2.4% -> 480 | AM18: 190
L19: =SUM(L14:L18) -> 0 | M19: 0 | N19: 25000 | O19: 50000 | P19: 50000 | Q19: -25000 | R19: 0 | S19: =SUM(S14:S18) -> 100000 | T19: 0 | U19: 0 | V19: 0 | W19: 0 | X19: 0 | Y19: 100000 | Z19: 10562 | AA19: 7000 | AB19: =SUM(AB14:AB18) -> 600 | AC19: =SUM(AC14:AC18) -> 0 | AD19: 0 | AE19: 0 | AF19: =SUM(AF14:AF18) -> 18162 | AG19: 81838 | AH19: 0 | AI19: =SUM(AI14:AI18) -> 81838 | AJ19: =SUM(AJ14:AJ18) -> 25000 | AK19: 56838 | AL19: 2400 | AM19: 950

Sheet Resumen (hidden)
E2: ANÁLISIS DEL GASTOS EN SUELDOS
D3: Nombre / Razón Social | E3: =+Portada!E4:J4 -> NUBOX
D4: RUT | E4: =+Portada!E5:J5 -> 11.111.111-1
D5: Representante Legal | E5: =+Portada!E6:J6 -> Dayana Huala
D6: C.I. Representante Legal | E6: =+Portada!E7:J7 -> 1.111.111-1
D7: Dirección | E7: =+Portada!E8:J8 -> Las Condes
D8: Teléfono | E8: =+Portada!E9:J9 -> 2-222-222-222
D9: Mes | E9: =+Portada!E10:J10 -> Marzo
D10: Año Comercial | E10: =+Portada!E11:J11 -> 2023
C13: DESCRIPCIÓN | D13: MONTOS
C15: Cantidad de trabajadores | D15: =COUNT('Lista de Trabajadores'!C14:C18) -> 0
C16: Sueldo Base | D16: =+'Lista de Trabajadores'!H12 -> 0
C17: Descuentos Previsionales | D17: =+'Lista de Trabajadores'!I12 -> 14526
C18: Monto Líquido a Pagar | D18: =+'Lista de Trabajadores'!J12 -> 40474

Sheet Liquidación 1 (hidden)
F4: LIQUIDACION DE SUELDO
I5: Año: | J5: =+Portada!E10 -> Marzo | K5: Año: | L5: =+Portada!E11 -> 2023
D8: EMPRESA : | E8: =+Portada!E4 -> NUBOX
D9: R.U.T. : | E9: =+Portada!E5 -> 11.111.111-1 | I9: N°INTERNO | J9: =+'Lista de Trabajadores'!C14 -> 0
D10: DIRECCION : | E10: =+Portada!E8 -> Las Condes | I10: TRABAJADOR : | J10: =+'Lista de Trabajadores'!D14 -> 0
D11: FONO : | E11: =+Portada!E9 -> 2-222-222-222 | I11: RUT : | J11: =+'Lista de Trabajadores'!E14 -> 0
I12: CARGO : | J12: =+'Lista de Trabajadores'!G14 -> 0
I13: FECHA DE CONTRATO: | J13: =+'Lista de Trabajadores'!F14 -> 00:00:00
I14: TIPO DE CONTRATO: | J14: Indefinido
D16: Días del Mes: | E16: 31
D17: Días Trabajados: | E17: 31
D18: Tope Gratificacion Mensual
E20: HABERES | K20: DESCUENTOS
D23: SUELDO BASE | E23: =+'Lista de Trabajadores'!H14 -> 0 | F23: $ | G23: =+(E23/E16)*E17 -> 0 | I23: AFP | J23: Uno | K23: =VLOOKUP(J23,Tasas!B20:C26,2,0) -> 0.1049 | L23: =+G27*K23 -> 2098
D24: GRATIFICACION LEGAL | E24: 0.25 | F24: $ | G24: =+G23*E24 -> 0 | I24: SEG. CESANTIA | K24: 0.006 | L24: =+G27*K24 -> 120
D25: BONOS PRODUCCION | F25: $ | I25: Fonasa | K25: 0.07 | L25: =+G27*K25 -> 1400
D27: TOTAL IMPONIBLE | G27: =+G23+G24+G25+E51+E52+E53+E54 -> 20000 | L27: =+L23+L24+L25 -> 3618
D30: ASIG.FAMILIAR (Revisar Indicacores) | F30: $ | G30: 0 | I30: PRESTAMOS CUOTA | K30: $ | L30: 0
D31: LOCOMOCION | F31: $ | G31: 0 | I31: DESCUENTO DE TERCEROS | K31: $ | L31: 0
D32: COLACION | F32: $ | G32: 0 | I32: OTROS DESCUENTOS | K32: $ | L32: 0
D33: DESGASTE DE HERRAMIENTAS | F33: $ | G33: 0
D34: PÉRDIDA DE CAJA | F34: $ | G34: 0
D36: TOTAL HABER | F36: $ | G36: =G27+G31+G32+G30+G33+G34 -> 20000 | I36: TOTAL DESCUENTOS | K36: $ | L36: =SUM(L27:L32) -> 3618
D39: CALCULO IMPUESTO UNICO
D41: RENTA IMPONIBLE | F41: $ | G41: =G27 -> 20000
D42: DESCTO.PREVISIONAL | F42: $ | G42: =L27 -> 3618
D44: BASE IMPONIBLE TRIBUTABLE | F44: $ | G44: =+G41-G42 -> 16382
D45: IMPUESTO A PAGAR** (Revisar Indicacores) | F45: $ | G45: 25000
I49: SUELDO LIQUIDO | J49: $ | K49: =+G36-L36-G45 -> -8618
D50: Otras Horas | I50: ANTICIPOS | J50: $ | K50: 0
D51: Horas Extras | E51: 5000 | I51: LIQUIDO A PAGAR | J51: $ | K51: =+K49-K50 -> -8618
D52: Horas Sábado | E52: 10000
D53: Horas Feriados | E53: 10000
D54: Horas Menos | E54: -5000
J56: ________________________
J57: RECIBO Y FIRMO CONFORME

Sheet Liquidación 2 (hidden)
F4: LIQUIDACION DE SUELDO
I5: Año: | J5: =+Portada!E10 -> Marzo | K5: Año: | L5: =+Portada!E11 -> 2023
D8: EMPRESA : | E8: =+Portada!E4 -> NUBOX
D9: R.U.T. : | E9: =+Portada!E5 -> 11.111.111-1 | I9: N°INTERNO | J9: =+'Lista de Trabajadores'!C15 -> 0
D10: DIRECCION : | E10: =+Portada!E8 -> Las Condes | I10: TRABAJADOR : | J10: =+'Lista de Trabajadores'!D15 -> 0
D11: FONO : | E11: =+Portada!E9 -> 2-222-222-222 | I11: RUT : | J11: =+'Lista de Trabajadores'!E15 -> 0
I12: CARGO : | J12: =+'Lista de Trabajadores'!G15 -> 0
I13: FECHA DE CONTRATO: | J13: =+'Lista de Trabajadores'!F15 -> 00:00:00
I14: TIPO DE CONTRATO: | J14: Indefinido
D16: Días del Mes: | E16: 31
D17: Días Trabajados: | E17: 31
D18: Tope Gratificacion Mensual
E20: HABERES | K20: DESCUENTOS
D23: SUELDO BASE | E23: =+'Lista de Trabajadores'!H15 -> 0 | F23: $ | G23: =+(E23/E16)*E17 -> 0 | I23: AFP | J23: Modelo | K23: =VLOOKUP(J23,Tasas!B20:C26,2,0) -> 0.1058 | L23: =+G27*K23 -> 2116
D24: GRATIFICACION LEGAL | E24: 0.25 | F24: $ | G24: =+G23*E24 -> 0 | I24: SEG. CESANTIA | K24: 0.006 | L24: =+G27*K24 -> 120
D25: BONOS PRODUCCION | F25: $ | I25: Fonasa | K25: 0.07 | L25: =+G27*K25 -> 1400
D27: TOTAL IMPONIBLE | G27: =+G23+G24+G25+E51+E52+E53+E54 -> 20000 | L27: =+L23+L24+L25 -> 3636
D30: ASIG.FAMILIAR (Revisar Indicacores) | F30: $ | G30: 0 | I30: PRESTAMOS CUOTA | K30: $ | L30: 0
D31: LOCOMOCION | F31: $ | G31: 0 | I31: DESCUENTO DE TERCEROS | K31: $ | L31: 0
D32: COLACION | F32: $ | G32: 0 | I32: OTROS DESCUENTOS | K32: $ | L32: 0
D33: DESGASTE DE HERRAMIENTAS | F33: $ | G33: 0
D34: PÉRDIDA DE CAJA | F34: $ | G34: 0
D36: TOTAL HABER | F36: $ | G36: =G27+G31+G32+G30+G33+G34 -> 20000 | I36: TOTAL DESCUENTOS | K36: $ | L36: =SUM(L27:L32) -> 3636
D39: CALCULO IMPUESTO UNICO
D41: RENTA IMPONIBLE | F41: $ | G41: =G27 -> 20000
D42: DESCTO.PREVISIONAL | F42: $ | G42: =L27 -> 3636
D44: BASE IMPONIBLE TRIBUTABLE | F44: $ | G44: =+G41-G42 -> 16364
D45: IMPUESTO A PAGAR** (Revisar Indicacores) | F45: $ | G45: 0
I49: SUELDO LIQUIDO | J49: $ | K49: =+G36-L36-G45 -> 16364
D50: Otras Horas | I50: ANTICIPOS | J50: $ | K50: 0
D51: Horas Extras | E51: 5000 | I51: LIQUIDO A PAGAR | J51: $ | K51: =+K49-K50 -> 16364
D52: Horas Sábado | E52: 10000
D53: Horas Feriados | E53: 10000
D54: Horas Menos | E54: -5000
J56: ________________________
J57: RECIBO Y FIRMO CONFORME

Sheet Liquidación 3 (hidden)
F4: LIQUIDACION DE SUELDO
I5: Año: | J5: =+Portada!E10 -> Marzo | K5: Año: | L5: =+Portada!E11 -> 2023
D8: EMPRESA : | E8: =+Portada!E4 -> NUBOX
D9: R.U.T. : | E9: =+Portada!E5 -> 11.111.111-1 | I9: N°INTERNO | J9: =+'Lista de Trabajadores'!C16 -> 0
D10: DIRECCION : | E10: =+Portada!E8 -> Las Condes | I10: TRABAJADOR : | J10: =+'Lista de Trabajadores'!D16 -> 0
D11: FONO : | E11: =+Portada!E9 -> 2-222-222-222 | I11: RUT : | J11: =+'Lista de Trabajadores'!E16 -> 0
I12: CARGO : | J12: =+'Lista de Trabajadores'!G16 -> 0
I13: FECHA DE CONTRATO: | J13: =+'Lista de Trabajadores'!F16 -> 00:00:00
I14: TIPO DE CONTRATO: | J14: Indefinido
D16: Días del Mes: | E16: 31
D17: Días Trabajados: | E17: 31
D18: Tope Gratificacion Mensual
E20: HABERES | K20: DESCUENTOS
D23: SUELDO BASE | E23: =+'Lista de Trabajadores'!H16 -> 0 | F23: $ | G23: =+(E23/E16)*E17 -> 0 | I23: AFP | J23: Modelo | K23: =VLOOKUP(J23,Tasas!B20:C26,2,0) -> 0.1058 | L23: =+G27*K23 -> 2116
D24: GRATIFICACION LEGAL | E24: 0.25 | F24: $ | G24: =+G23*E24 -> 0 | I24: SEG. CESANTIA | K24: 0.006 | L24: =+G27*K24 -> 120
D25: BONOS PRODUCCION | F25: $ | I25: Fonasa | K25: 0.07 | L25: =+G27*K25 -> 1400
D27: TOTAL IMPONIBLE | G27: =+G23+G24+G25+E51+E52+E53+E54 -> 20000 | L27: =+L23+L24+L25 -> 3636
D30: ASIG.FAMILIAR (Revisar Indicacores) | F30: $ | G30: 0 | I30: PRESTAMOS CUOTA | K30: $ | L30: 0
D31: LOCOMOCION | F31: $ | G31: 0 | I31: DESCUENTO DE TERCEROS | K31: $ | L31: 0
D32: COLACION | F32: $ | G32: 0 | I32: OTROS DESCUENTOS | K32: $ | L32: 0
D33: DESGASTE DE HERRAMIENTAS | F33: $ | G33: 0
D34: PÉRDIDA DE CAJA | F34: $ | G34: 0
D36: TOTAL HABER | F36: $ | G36: =G27+G31+G32+G30+G33+G34 -> 20000 | I36: TOTAL DESCUENTOS | K36: $ | L36: =SUM(L27:L32) -> 3636
D39: CALCULO IMPUESTO UNICO
D41: RENTA IMPONIBLE | F41: $ | G41: =G27 -> 20000
D42: DESCTO.PREVISIONAL | F42: $ | G42: =L27 -> 3636
D44: BASE IMPONIBLE TRIBUTABLE | F44: $ | G44: =+G41-G42 -> 16364
D45: IMPUESTO A PAGAR** (Revisar Indicacores) | F45: $ | G45: 0
I49: SUELDO LIQUIDO | J49: $ | K49: =+G36-L36-G45 -> 16364
D50: Otras Horas | I50: ANTICIPOS | J50: $ | K50: 0
D51: Horas Extras | E51: 5000 | I51: LIQUIDO A PAGAR | J51: $ | K51: =+K49-K50 -> 16364
D52: Horas Sábado | E52: 10000
D53: Horas Feriados | E53: 10000
D54: Horas Menos | E54: -5000
J56: ________________________
J57: RECIBO Y FIRMO CONFORME

Sheet Liquidación 4 (hidden)
F4: LIQUIDACION DE SUELDO
I5: Año: | J5: =+Portada!E10 -> Marzo | K5: Año: | L5: =+Portada!E11 -> 2023
D8: EMPRESA : | E8: =+Portada!E4 -> NUBOX
D9: R.U.T. : | E9: =+Portada!E5 -> 11.111.111-1 | I9: N°INTERNO | J9: =+'Lista de Trabajadores'!C17 -> 0
D10: DIRECCION : | E10: =+Portada!E8 -> Las Condes | I10: TRABAJADOR : | J10: =+'Lista de Trabajadores'!D17 -> 0
D11: FONO : | E11: =+Portada!E9 -> 2-222-222-222 | I11: RUT : | J11: =+'Lista de Trabajadores'!E17 -> 0
I12: CARGO : | J12: =+'Lista de Trabajadores'!G17 -> 0
I13: FECHA DE CONTRATO: | J13: =+'Lista de Trabajadores'!F17 -> 00:00:00
I14: TIPO DE CONTRATO: | J14: Indefinido
D16: Días del Mes: | E16: 31
D17: Días Trabajados: | E17: 31
D18: Tope Gratificacion Mensual
E20: HABERES | K20: DESCUENTOS
D23: SUELDO BASE | E23: =+'Lista de Trabajadores'!H17 -> 0 | F23: $ | G23: =+(E23/E16)*E17 -> 0 | I23: AFP | J23: Modelo | K23: =VLOOKUP(J23,Tasas!B20:C26,2,0) -> 0.1058 | L23: =+G27*K23 -> 2116
D24: GRATIFICACION LEGAL | E24: 0.25 | F24: $ | G24: =+G23*E24 -> 0 | I24: SEG. CESANTIA | K24: 0.006 | L24: =+G27*K24 -> 120
D25: BONOS PRODUCCION | F25: $ | I25: Fonasa | K25: 0.07 | L25: =+G27*K25 -> 1400
D27: TOTAL IMPONIBLE | G27: =+G23+G24+G25+E51+E52+E53+E54 -> 20000 | L27: =+L23+L24+L25 -> 3636
D30: ASIG.FAMILIAR (Revisar Indicacores) | F30: $ | G30: 0 | I30: PRESTAMOS CUOTA | K30: $ | L30: 0
D31: LOCOMOCION | F31: $ | G31: 0 | I31: DESCUENTO DE TERCEROS | K31: $ | L31: 0
D32: COLACION | F32: $ | G32: 0 | I32: OTROS DESCUENTOS | K32: $ | L32: 0
D33: DESGASTE DE HERRAMIENTAS | F33: $ | G33: 0
D34: PÉRDIDA DE CAJA | F34: $ | G34: 0
D36: TOTAL HABER | F36: $ | G36: =G27+G31+G32+G30+G33+G34 -> 20000 | I36: TOTAL DESCUENTOS | K36: $ | L36: =SUM(L27:L32) -> 3636
D39: CALCULO IMPUESTO UNICO
D41: RENTA IMPONIBLE | F41: $ | G41: =G27 -> 20000
D42: DESCTO.PREVISIONAL | F42: $ | G42: =L27 -> 3636
D44: BASE IMPONIBLE TRIBUTABLE | F44: $ | G44: =+G41-G42 -> 16364
D45: IMPUESTO A PAGAR** (Revisar Indicacores) | F45: $ | G45: 0
I49: SUELDO LIQUIDO | J49: $ | K49: =+G36-L36-G45 -> 16364
D50: Otras Horas | I50: ANTICIPOS | J50: $ | K50: 0
D51: Horas Extras | E51: 5000 | I51: LIQUIDO A PAGAR | J51: $ | K51: =+K49-K50 -> 16364
D52: Horas Sábado | E52: 10000
D53: Horas Feriados | E53: 10000
D54: Horas Menos | E54: -5000
J56: ________________________
J57: RECIBO Y FIRMO CONFORME

Sheet Liquidación 5 (hidden)
F4: LIQUIDACION DE SUELDO
I5: Año: | J5: =+Portada!E10 -> Marzo | K5: Año: | L5: =+Portada!E11 -> 2023
D8: EMPRESA : | E8: =+Portada!E4 -> NUBOX
D9: R.U.T. : | E9: =+Portada!E5 -> 11.111.111-1 | I9: N°INTERNO | J9: =+'Lista de Trabajadores'!C18 -> 0
D10: DIRECCION : | E10: =+Portada!E8 -> Las Condes | I10: TRABAJADOR : | J10: =+'Lista de Trabajadores'!D18 -> 0
D11: FONO : | E11: =+Portada!E9 -> 2-222-222-222 | I11: RUT : | J11: =+'Lista de Trabajadores'!E18 -> 0
I12: CARGO : | J12: =+'Lista de Trabajadores'!G18 -> 0
I13: FECHA DE CONTRATO: | J13: =+'Lista de Trabajadores'!F18 -> 00:00:00
I14: TIPO DE CONTRATO: | J14: Indefinido
D16: Días del Mes: | E16: 31
D17: Días Trabajados: | E17: 31
D18: Tope Gratificacion Mensual
E20: HABERES | K20: DESCUENTOS
D23: SUELDO BASE | E23: =+'Lista de Trabajadores'!H18 -> 0 | F23: $ | G23: =+(E23/E16)*E17 -> 0 | I23: AFP | J23: Modelo | K23: =VLOOKUP(J23,Tasas!B20:C26,2,0) -> 0.1058 | L23: =+G27*K23 -> 2116
D24: GRATIFICACION LEGAL | E24: 0.25 | F24: $ | G24: =+G23*E24 -> 0 | I24: SEG. CESANTIA | K24: 0.006 | L24: =+G27*K24 -> 120
D25: BONOS PRODUCCION | F25: $ | I25: Fonasa | K25: 0.07 | L25: =+G27*K25 -> 1400
D27: TOTAL IMPONIBLE | G27: =+G23+G24+G25+E51+E52+E53+E54 -> 20000 | L27: =+L23+L24+L25 -> 3636
D30: ASIG.FAMILIAR (Revisar Indicacores) | F30: $ | G30: 0 | I30: PRESTAMOS CUOTA | K30: $ | L30: 0
D31: LOCOMOCION | F31: $ | G31: 0 | I31: DESCUENTO DE TERCEROS | K31: $ | L31: 0
D32: COLACION | F32: $ | G32: 0 | I32: OTROS DESCUENTOS | K32: $ | L32: 0
D33: DESGASTE DE HERRAMIENTAS | F33: $ | G33: 0
D34: PÉRDIDA DE CAJA | F34: $ | G34: 0
D36: TOTAL HABER | F36: $ | G36: =G27+G31+G32+G30+G33+G34 -> 20000 | I36: TOTAL DESCUENTOS | K36: $ | L36: =SUM(L27:L32) -> 3636
D39: CALCULO IMPUESTO UNICO
D41: RENTA IMPONIBLE | F41: $ | G41: =G27 -> 20000
D42: DESCTO.PREVISIONAL | F42: $ | G42: =L27 -> 3636
D44: BASE IMPONIBLE TRIBUTABLE | F44: $ | G44: =+G41-G42 -> 16364
D45: IMPUESTO A PAGAR** (Revisar Indicacores) | F45: $ | G45: 0
I49: SUELDO LIQUIDO | J49: $ | K49: =+G36-L36-G45 -> 16364
D50: Otras Horas | I50: ANTICIPOS | J50: $ | K50: 0
D51: Horas Extras | E51: 5000 | I51: LIQUIDO A PAGAR | J51: $ | K51: =+K49-K50 -> 16364
D52: Horas Sábado | E52: 10000
D53: Horas Feriados | E53: 10000
D54: Horas Menos | E54: -5000
J56: ________________________
J57: RECIBO Y FIRMO CONFORME

Sheet Tasas (hidden)
D2: TASAS / INDICADORES
D14: INDICADORES DIARIOS | F14: (*) Recuerda que hay indicadores que cambian todos los días.
D15: BANCO CENTRAL | E15: ¡Pincha aquí!
B18: TASA AFP TRABAJADORES | C18: DEPENDIENTES | E18: INDEPENDIENTES | G18: SEGURO DE CESANTÍA (AFC) TIPO DE CONTRATO | H18: FINANCIAMIENTO
C19: TASA AFP | D19: SIS (1) (2) | E19: TASA AFP (3) | H19: EMPLEADOR | I19: TRABAJADOR
B20: Capital | C20: 0.1144 | D20: 0.0149 | E20: 0.1293 | G20: Plazo Indefinido | H20: 2,4% R.I. | I20: 0,6% R.I.
B21: Cuprum | C21: 0.1144 | D21: 0.0149 | E21: 0.1293 | G21: Plazo Fijo | H21: 3,0% R.I. | I21: –
B22: Habitat | C22: 0.1127 | D22: 0.0149 | E22: 0.1276 | G22: Plazo Indefinido 11 años o más (*) | H22: 0,8% R.I. | I22: –
B23: PlanVital | C23: 0.1116 | D23: 0.0149 | E23: 0.1265 | G23: Trabajador de Casa Particular (**) | H23: 3,0% R.I. | I23: –
B24: ProVida | C24: 0.1145 | D24: 0.0149 | E24: 0.1294 | G24: (*) Para revisar más antecedentes sobre el seguro de cesantía, recuerda revisar su plataforma WEB. | I24: ¡Pincha Aquí!
B25: Modelo | C25: 0.1058 | D25: 0.0149 | E25: 0.1207
B26: Uno | C26: 0.1049 | D26: 0.0149 | E26: 0.1198 | G26: ¿Qué es el seguro de Cesantía en Chile y quién lo paga?
B27: Leyes Sociales en Chile: ¡claves que debes saber!
B31: ASIGNACIÓN FAMILIAR SEGÚN TRAMO | G31: TOPES LEGALES DE LAS RENTAS IMPONIBLES
G32: Para afiliados a una AFP (84,3 UF): | H32: 3126984
B33: TRAMO | C33: MONTO | D33: REQUISITO DE RENTA | G33: Para afiliados al IPS (ex INP) (60 UF): | H33: 2211390
B34: 1 (A) | C34: 20328 | D34: Renta < ó = $ 539.328 | G34: Para Seguro de Cesantía (126,6 UF): | H34: 4696040
B35: 2 (B) | C35: 12475 | D35: Renta > $ 539.628 < = $ 787.746 | G35: (*) Recuerda que a partir de enero 2024, se visualizan algunos ajustes | H35: ¡Revisa Acá!
B36: 3 (C) | C36: 3942 | D36: Renta > $ 787.746 < = $ 1.228.614
B37: 4 (D) | C37: – | D37: Renta > $1.228.614
B38: ¿Cómo se calcula la asignación familiar en Chile?
B41: DISTRIBUCIÓN DEL 7% SALUD, PARA EMPLEADOR AFILIADO A CCAF (*) | D41: (*) Es importante considerar que FONASA es un7% de su cotización obligatoria, por lo que este desglose aplica sólo para aquellos que pertenecen a una caja de compensación.
B42: CCAF | C42: 4.9 % R.I.
B43: FONASA | C43: 2.1 % R.I.
B44: ¡Pincha Aquí! | C44: Recuerda revisar que tus trabajadores se encuentren afiliados a FONASA.
B47: Monto de Cálculo del Impuesto Único de Segunda Categoría
B48: Períodos | C48: Monto de la renta líquida imponible | E48: Factor | F48: Cantidad a rebajar | G48: Tasa de Impuesto Efectiva, máxima por cada tramo de Renta
C49: Desde | D49: Hasta | E49: Revisa en línea !quí!
B50: MENSUAL | C50: -.- | D50: 866916 | E50: Exento | F50: -.- | G50: Exento
C51: 866916.01 | D51: 1926480 | E51: 0.04 | F51: 34676.64 | G51: 0.022
C52: 1926480.01 | D52: 3210800 | E52: 0.08 | F52: 111735.84 | G52: 0.0452
C53: 3210800.01 | D53: 4495120 | E53: 0.135 | F53: 288329.84 | G53: 0.0709
C54: 4495120.01 | D54: 5779440 | E54: 0.23 | F54: 715366.24 | G54: 0.1062
C55: 5779440.01 | D55: 7705920 | E55: 0.304 | F55: 1143044.8 | G55: 0.1557
C56: 7705920.01 | D56: 19906960 | E56: 0.35 | F56: 1497517.12 | G56: 0.2748
C57: 19906960.01 | D57: Y MÁS | E57: 0.4 | F57: 2492865.12 | G57: MÁS DE 27,48%
B59: Artículos que te pueden interesar
B60: Revisa nuestros artículos: | C60: ¿Cómo calcular el Impuesto Único? | D60: ¿Qué tipos de remuneraciones hay en Chile? | E60: ¿Cómo hacer una liquidación de sueldo en Chile? | F60: ¿Cómo se pagan las horas extras en Chile? | G60: 6 recomendaciones a la hora de realizar el pago de sueldos

Sheet instructivo (hidden)
F12: Notas iniciales | K12: Antecedentes importantes de la Planilla de Trabajo
B13: **Al abrir este archivo, recuerda habilitar el contenido para macros. | K13: **Esta herramienta de trabajo esta diseñada para una microempresa de no más de 5 trabajadores
K14: ** Tiene espacios de trabajo 100% automátizados, otros semi automáticos y algunos que se deberán modificar de manera manual, según correpsonda
B17: ** Verificar las opciones avanzadas de tu excel para acceder al formato de trabajo de esta plantilla (Visual Basic). | K17: *Libro de Remuneraciones 100% automático. La información deriva de las liquidaciones de sueldos.
B19: **Para guardar el archivo en el computador de trabajo, se debe guardar como documento habilitado para macros. | K19: ** Liquidaciones de sueldos semiautomáticas. Se debe actualizar la información de las listas desplegables, la información manual y dejar sin modificaciones las fórmulas de llenado automático.
B21: **Al guardar el documento aparecerá este mensaje, el cual deberás aceptar para respetar fórmulas. | K21: ** Este Libro de Remuneraciones se puede complementar información que debe ser subida a la Dirección del Trabajo. Sin embargo, éste está diseñado para cálculos de centralización de gastos de personal y derivar información mensual a un libro diario, para posterior balance general de ser necesario.
K23: ** Es imortante que actualices los antecedentes en las tasas de indicadores según PREVIRED, cada vez que sea necesario. Así mantendrás al día los % de prevision social.
B28: **Al abrir el documento se desplegará este mensaje. Haz clic en no actualizar, para mantener fórmulas.
B34: **Recuerda revisar todos los mensajes de ayuda y alerta en las páginas dinámicas con las que se trabajarán en este KIT.

Sheet Hoja1 (hidden)
K4: AFP | L4: TASA COTIZACIÓN OBLIGATORIO AFP
B5: Enero | D5: Plazo Fijo | F5: Fonasa | H5: Capital | L5: TASA AFP TRABAJADORES
B6: Febrero | D6: Plazo Indefinido | F6: Isapre | H6: Cuprum | L6: DEPENDIENTES | N6: INDEPENDIENTES
B7: Marzo | D7: Part Time | H7: Habitat | L7: TASA AFP | M7: SIS (1) (2) | N7: TASA AFP (3)
B8: Abril | D8: Vinculo Laboral | H8: Modelo | K8: Capital | L8: 0.1144 | M8: 0.0194 | N8: 0.1338
B9: Mayo | D9: Obra | H9: Provida | K9: Cuprum | L9: 0.1144 | M9: 0.0194 | N9: 0.1338
B10: Junio | H10: Uno | K10: Habitat | L10: 0.1127 | M10: 0.0194 | N10: 0.1321
B11: Julio | K11: PlanVital | L11: 0.1116 | M11: 0.0194 | N11: 0.131
B12: Agosto | K12: ProVida | L12: 0.1145 | M12: 0.0194 | N12: 0.1339
B13: Septiembre | K13: Modelo | L13: 0.1077 | M13: 0.0194 | N13: 0.1271
B14: Octubre | K14: Uno | L14: 0.1069 | M14: 0.0194 | N14: 0.1263
B15: Noviembre
B16: Diciembre | H16: Fijo | I16: Isapre
H17: Indefinido | I17: Fonasa
